Cogmind - Beta 10.2 @@@ ROGUE MODE // 2020.11.04 @ 20:25:17 // Halloween2020/ForbiddenLore Player: Komen Result: Destroyed by D-53 Grenadier with Mini Grenade Launcher Performance ------------- Evolutions (0) 0 Regions Visited (2) 400 Robots Destroyed (8) 40 Value Destroyed (195) 195 Prototype IDs (0) 0 Alien Tech Used (0) 0 Bonus (0) 0 TOTAL SCORE: 635 Bonus ------- None Cogmind --------- Core Integrity 0/250 Matter 300/300 Energy 100/100 System Corruption 0% Temperature Cool (0) Movement Core (550) Ox10 Location -10/Mines Parts ------- > --- POWER (1) -------- (None) > --- PROPULSION (2) --- (None) > --- UTILITY (2) ------ Large Storage Unit Large Storage Unit > --- WEAPON (2) ------- (None) > --- INVENTORY (16) --- Improved Treads Improved Treads Improved Hover Unit Improved Hover Unit Improved Hover Unit Improved Hover Unit Heat Sink Heat Sink Medium Storage Unit Sensor Array Signal Interpreter Targeting Computer EM Pulse Gun Beam Rifle Heavy Assault Rifle Mining Laser Peak State ------------ > --- POWER ------------ (None) > --- PROPULSION ------- Improved Treads Improved Treads > --- UTILITY ---------- Large Storage Unit Large Storage Unit > --- WEAPON ----------- Mining Laser Enhanced Flamer > --- INVENTORY -------- Improved Treads Improved Treads Improved Hover Unit Improved Hover Unit Improved Hover Unit Improved Hover Unit Heat Sink Heat Sink Medium Storage Unit Sensor Array Signal Interpreter Targeting Computer EM Pulse Gun Beam Rifle Heavy Assault Rifle Mining Laser [Rating: 12] Favorites ----------- Power Light Ion Engine Engine Light Ion Engine Propulsion Improved Treads Treads Improved Treads Utility Large Storage Unit Storage Large Storage Unit Weapon Assault Rifle Energy Gun Medium Laser Ballistic Gun Assault Rifle Special Weapon Mining Laser Build | -11 -10 -10 ------- Run | Scr Mat Min Slots Evolved . | . . . Power . | . . . Propulsion . | . . . Utility . | . . . Weapon . | . . . Parts Attached 13 | 6 5 2 Power 1 | 1 . . Engine 1 | 1 . . Core . | . . . Reactor . | . . . Propulsion 4 | 2 2 . Treads 4 | 2 2 . Leg . | . . . Wheel . | . . . Hover . | . . . Flight . | . . . Utility 3 | 1 2 . Device . | . . . Storage 3 | 1 2 . Processor . | . . . Hackware . | . . . Protection . | . . . Artifact . | . . . Weapon 5 | 2 1 2 Energy Gun 1 | 1 . . Energy Cannon . | . . . Ballistic Gun 2 | 1 . 1 Ballistic Cannon . | . . . Launcher . | . . . Special Weapon 2 | . 1 1 Impact Weapon . | . . . Slashing Weapon . | . . . Piercing Weapon . | . . . Special Melee Weapon . | . . . Unidentified Prototypes . | . . . Parts Lost 7 | . 3 4 Power 1 | . 1 . Propulsion 2 | . . 2 Utility . | . . . Weapon 4 | . 2 2 Highest Loss Streak 4 | . 2 4 Average Slot Usage (%) 78 | . 74 82 Engine 6 | . 11 . Treads 27 | . 28 27 Storage 22 | . 18 28 Energy Gun 1 | . 2 . Ballistic Gun 10 | . 11 7 Special Weapon 8 | . . 18 Naked Turns . | . . . Heaviest Build 37 | 11 37 36 Greatest Support 46 | 40 46 46 Greatest Overweight (x) 11 | . 2 11 Average Overweight (x) . | . . . Largest Inventory Capacity 16 | 6 16 16 Average Capacity 11 | 5 9 16 Most Carried 16 | 4 12 16 Average Carried 8 | . 4 15 Final Capacity 16 | 6 16 16 Final Carried 16 | . 12 16 Class Distribution -------------------- 100% | Mutant Dominant Class ---------------- Mutant | -10/Materials Mutant | -10/Mines Resources | -11 -10 -10 ----------- Run | Scr Mat Min Matter Collected 376 | 230 133 13 Remotely . | . . . Salvage Created 189 | . 189 . Parts 18 | . 18 . Haulers Intercepted . | . . . Recyclers Shooed 1 | . 1 . Parts Field Recycled . | . . . Retrieved Matter . | . . . Parts Self-Destructed . | . . . Prevented . | . . . Kills | -11 -10 -10 ------- Run | Scr Mat Min Combat Hostiles Destroyed 7 | . 7 . Guns 5 | . 5 . Cannons 2 | . 2 . Classes Destroyed 3 | . 3 . Watcher 1 | . 1 . Swarmer 3 | . 3 . Grunt 4 | . 4 . Best Kill Streak 3 | . 3 . Combat Bots Only 3 | . 3 . Max Kills in Single Turn 1 | . 1 . Gunslinging . | . . . Exploded . | . . . Melee . | . . . Uniques/NPCs Destroyed . | . . . Combat | -11 -10 -10 -------- Run | Scr Mat Min Damage Taken 1051 | . 668 383 Core 272 | . 154 118 Absorbed by Shields . | . . . Core Remaining (%) 100 | 100 . . Volleys Fired 30 | . 29 1 Largest 2 | . 2 1 Hottest 100 | . 100 80 Shots Fired 39 | . 38 1 Gun 36 | . 36 . Cannon . | . . . Launcher . | . . . Special 3 | . 2 1 Kinetic 27 | . 27 . Thermal 12 | . 11 1 Explosive . | . . . Electromagnetic . | . . . Robot Hit Streak 7 | . 6 7 Robot Miss Streak 2 | . 2 . Penetration Max . | . . . Secondary Targets . | . . . Shots Hit Robots 26 | . 25 1 Core Hits 13 | . 13 . Critical Hits . | . . . Critical Kills . | . . . Critical Parts Destroyed . | . . . Melee Attacks . | . . . Impact . | . . . Slashing . | . . . Piercing . | . . . Sneak Attacks . | . . . Combat Hostiles . | . . . Follow-up Attacks . | . . . Damage Inflicted 360 | . 350 10 Guns 302 | . 302 . Cannons . | . . . Explosions . | . . . Melee . | . . . Ramming . | . . . Kinetic 213 | . 213 . Thermal 147 | . 137 10 Explosive . | . . . Electromagnetic . | . . . Impact . | . . . Slashing . | . . . Piercing . | . . . Highest Corruption . | . . . Average Corruption . | . . . Corruption Purged . | . . . Overload Shots . | . . . Overflow Damage . | . . . Projectiles . | . . . Explosions . | . . . Melee . | . . . Knockbacks . | . . . Impact . | . . . Kinetic . | . . . Secondary . | . . . Self-Inflicted Damage . | . . . Shots . | . . . Rammed . | . . . Targets Rammed . | . . . Kicked . | . . . Crushed . | . . . Highest Temperature 88 | . 88 30 Average Temperature 26 | . 26 16 Received Heat Transfer 342 | . 333 9 Siege Activations . | . . . Robots Corrupted . | . . . Combat Hostiles . | . . . Parts Fried . | . . . Impact Corruptions . | . . . Robots Melted . | . . . Combat Hostiles . | . . . Parts Melted . | . . . Heat Transferred 439 | . 359 80 Parts Sabotaged . | . . . Parts Stolen . | . . . Parts Stripped . | . . . Power Chain Reactions . | . . . Missiles Intercepted . | . . . Alert | -11 -10 -10 ------- Run | Scr Mat Min Peak Influence 177 | . 177 99 Initial 69 | . . 69 Average 74 | . 85 83 Maximum Alert Level . | . . . Low Security (%) 100 | 100 100 100 Level 1 . | . . . Level 2 . | . . . Level 3 . | . . . Level 4 . | . . . Level 5 . | . . . High Security . | . . . Max Security . | . . . Squads Dispatched 2 | . 2 . Investigation 1 | . 1 . Extermination . | . . . Reinforcement 1 | . 1 . Assault . | . . . Garrison . | . . . Intercept . | . . . Construction Impeded . | . . . Haulers Reinforced . | . . . Stealth | -11 -10 -10 --------- Run | Scr Mat Min Distress Signals 1 | . 1 . Communications Jammed . | . . . Distress Signals . | . . . Times Spotted 18 | . 14 4 Peak Tracking Total 4 | . 4 2 Tactical Retreats . | . . . Traps | -11 -10 -10 ------- Run | Scr Mat Min Traps Triggered 1 | . 1 . Indirectly . | . . . Trap Hack Attempts . | . . . Triggered . | . . . Disarmed . | . . . Reprogrammed . | . . . Reused . | . . . Traps Extracted . | . . . Installed . | . . . Triggered . | . . . Machines | -11 -10 -10 ---------- Run | Scr Mat Min Machines Disabled . | . . . Max in Single Turn . | . . . Machines Sabotaged . | . . . Garrisons Compromised . | . . . Overloaded Fab Kills . | . . . Fab Network Shutdowns . | . . . Hacking | -11 -10 -10 --------- Run | Scr Mat Min Machines Accessed . | . . . Terminals . | . . . Fabricators . | . . . Repair Stations . | . . . Recycling Units . | . . . Scanalyzers . | . . . Garrison Access . | . . . Total Hacks . | . . . Successful . | . . . Failed . | . . . Catastrophic . | . . . Database Lockouts . | . . . Manual . | . . . Terminals . | . . . Fabricators . | . . . Repair Stations . | . . . Recycling Units . | . . . Scanalyzers . | . . . Garrison Access . | . . . Terminal Hacks . | . . . Fabricator Hacks . | . . . Repair Station Hacks . | . . . Recycling Unit Hacks . | . . . Scanalyzer . | . . . Garrison Access Hacks . | . . . Unauthorized Hacks . | . . . Terminals . | . . . Fabricators . | . . . Repair Stations . | . . . Recycling Units . | . . . Scanalyzers . | . . . Garrison Access . | . . . Data Cores Recovered . | . . . Used . | . . . Hacking Detections . | . . . Full Trace Events . | . . . Feedback Events . | . . . Feedback Blocked . | . . . Robot Schematics Acquired . | . . . Robots Built . | . . . Matter . | . . . Time . | . . . Total Robot Build Rating . | . . . Part Schematics Acquired . | . . . Parts Built . | . . . Matter . | . . . Time . | . . . Total Part Build Rating . | . . . Parts Repaired . | . . . Time . | . . . Parts Recycled . | . . . Recycled Matter . | . . . Retrieved Matter . | . . . Retrieved Components . | . . . Parts Scanalyzed . | . . . Part Schematics Acquired . | . . . Parts Damaged . | . . . Bothacking | -11 -10 -10 ------------ Run | Scr Mat Min Used RIF Installer . | . . . Robots Hacked . | . . . Non-combat . | . . . Combat . | . . . Robot Hacks Applied . | . . . Relay Couplers Released . | . . . Robots Rewired . | . . . Allies Hacked . | . . . Hacks Repelled . | . . . Allies | -11 -10 -10 -------- Run | Scr Mat Min Total Allies . | . . . Largest Group . | . . . Highest-Rated Group . | . . . Highest-Rated Ally . | . . . Total Orders . | . . . Ally Attacks . | . . . Total Damage . | . . . Kills . | . . . Allies Corrupted . | . . . Allies Melted . | . . . Intel | -11 -10 -10 ------- Run | Scr Mat Min Robot Analysis Total . | . . . Derelict Logs Recovered . | . . . Drone Launches . | . . . Drone Recoveries . | . . . Exploration | -11 -10 -10 ------------- Run | Scr Mat Min Turns Passed 674 | 84 335 255 Spaces Moved 360 | 59 150 151 Core 21 | 18 2 1 Treads 339 | 41 148 150 Legs . | . . . Wheels . | . . . Hover . | . . . Flight . | . . . Fastest Speed 50 | 50 150 160 Average Speed 155 | 126 159 163 Slowest Speed 600 | 160 160 600 Overloaded Moves . | . . . Propulsion Burnouts . | . . . Robots Hopped . | . . . Cave-ins Triggered . | . . . Exploration Rate (%) 22 | 3 31 34 Regions Visited 2 Branch Regions 1 Pre-discovered Areas . | . . . Known Exits Taken . | . . . Unknown Exits Taken 2 | 1 1 . Scrap Searched . | . . . Spaces Dug . | . . . Terrain Destroyed . | . . . Melee . | . . . Projectile . | . . . AOE . | . . . Terrain Rammed . | . . . Walls Destroyed . | . . . Machines Disabled . | . . . Actions | -11 -10 -10 --------- Run | Scr Mat Min Total 432 | 68 203 161 Wait 1 | . 1 . Move 358 | 58 149 151 Hop . | . . . Pick Up 26 | 4 16 6 Fast Attach 3 | 2 1 . Attach 6 | 4 1 1 Detach . | . . . Swap 4 | . 3 1 Drop 4 | . 3 1 Fire 30 | . 29 1 Melee . | . . . Ram . | . . . Kick . | . . . Crush . | . . . Escape Stasis . | . . . Rewire . | . . . Trap . | . . . Miscellaneous . | . . . Route ------- -11/Scrapyard -10/Materials -10/Mines History --------- Turn | Location | Event 23 | -11/Scrapyard | Discovered new exit (range 15) 85 | -11/Scrapyard | Entered Materials 327 | -10/Materials | Build established: Mutant 389 | -10/Materials | Discovered new exit (range 5) 404 | -10/Materials | Core integrity fell below 50% 420 | -10/Materials | Entered Mines 424 | -10/Mines | Joined a pair of Derelicts in attacking an 0b10 outpost 585 | -10/Mines | A weapon hastily lodged in a ceiling crevice suddenly fell to the ground 643 | -10/Mines | Assembled infested the area 648 | -10/Mines | Assisted by a Guerilla fighting off Assembled 674 | -10/Mines | Core integrity fell below 20% 675 | -10/Mines | Destroyed by D-53 Grenadier with Mini Grenade Launcher Last Messages --------------- attached: "One is never enough." Dropped Med. Storage Unit. Acquired Enh. Flamer. ALERT: Infestation in the mines, dispatching Demolisher response squad. A derelict emerges from the shadows: "You need to get out of here! I've been tracking a group of Assembled to figure out where they're coming from, and they're closing on this area, come on!" 6D-540(h): "I'll hold them off! Go on ahead or try to find another way!" U-05 Engineer builds a Wall. D-53 Grenadier suffers critical hit. D-53 Grenadier knocked back. 6D-540(h) destroyed. T-07 Excavator destroyed. Imp. Treads destroyed. U-05 Engineer builds a Wall. The unstable cave ceiling collapses. Imp. Treads destroyed. Mining Laser destroyed. Enh. Flamer destroyed. U-05 Engineer builds a Wall. Map ----- +----------------------------------------------------+ | ?????????????????????????????????????????????????? | | ?????????????????????????????????????????????????? | | ?????????????????????????????????????????????????? | | ?????????????????????????????????????????????????? | | ?????????????????????????????????????????????????? | | ?????????????????????????????????????????????????? | | ????????????????????????????????????????????????## | | ??????????????????????????????????????????????## | | ??????????????????????????????????????????????# | | ????????????????????????????????#########?????# | | ????????????????????????????????# ## ##????# | | ????????????????????????????????# ##???# | | ????????????????????????????????## ##### | | ?????????????????????????????????# ## # | | ?????????????????????????????????# ## | | ?????????????????????????????????# ##? | | ?????????????????????????????????# ##?? | | ??????????????????#??????????????# ##??? | | ??????????????????# ????#######??# #####???? | | ??????????????????# #### # #### ##???????? | | ??????????????????# # ## ##???????? | | ??????????????????# # ##??????? | | ??????????????????# kk #??????? | | ??????????????????# #??????? | | ??????????????????## # ##??????? | | ???????????????????# @ # ####???????? | | ??????????????????# dd ## ##??????????? | | ??????????????????# # #### ##??????????? | | ????????????????????## ##??## ! #??????????? | | ?????????????????????#### ###???## ##?????????? | | ????????????????????????####???### ##????????? | | ??????????????????????????###### ##???????? | | ??????????????????????##### ## #???????? | | ?????????????????????## #???????? | | ????????????????###### ## ##???????? | | ??????????# ## ##########????????? | | ??????????# #??####???????????? | | ???????????# ##?## ##??????????? | | ?????????????# ### ###?## #??????????? | | ?????????????## ???# ##?### #??????????? | | ??????????????# ????## #?## #???????????? | | ??????????????## ????## ### #???????????? | | ?????????????????????## #???????????? | | ???????????????????### #???????????? | | ?????????????????### ## #???????????? | | ????????????###### #### #####???????? | | ???????????## ## ####??#### #???????? | | ???????????# ##????????## #### #???????? | | ???????????# #??????????## ##??# #???????? | | ???????????## ##???????????## #???# #???????? | +----------------------------------------------------+ Best States ------------- Heat Dissipation 25 Energy Generation 10 Energy Capacity 125 Matter Stores 300 Matter Capacity 300 Sight Range 16 Terrain Scan Density 10 Evasion (%) 50 Recoil Reduction 2 Item Schematics ----------------- None Robot Schematics ------------------ None Fabricated ------------ Nothing Alien Tech Used ----------------- None Achievements -------------- None Challenges ------------ None Game ------ Seed TargetDroneCasing Manual? 0 Play Time 00:14:34 Cumulative 24.5 hours Start 2020.11.04 @ 20:12:36 End 2020.11.04 @ 20:25:17 Sessions 1 Manual Loads 0 Difficulty Rogue Special Mode Halloween2020/ForbiddenLore Game No. 48 Rogue 48 Adventurer 0 Explorer 0 Win Type - Total 0 Types 0/0/0/0/0/0/0/0/0 Lore% 19 Gallery% 28 Achievement% 21 Wizard Run 0 Options --------- ASCII 0 Keyboard 0 Movement Mouse Keybinds 0 Fullscreen 2 Font 24/Smallcaps Map View 76x50 Tactical HUD 0 Map Filters NONE Filters NONE Steam 1 RUN: 3be6817d-1994-4eaf-9347-1979d3af9809